bitfinex-derivatives/quotes_BTCF0:USTF0_20250903
["timestamp","ask_amount","ask_price","bid_price","bid_amount"]
[1756909043496,1.37880916,111220.0,111210.0,0.03901]
[1756909043898,2.26396916,111220.0,111210.0,0.03901]
[1756909044297,2.51396916,111220.0,111210.0,0.002]
[1756909046195,2.53572337,111220.0,111210.0,0.002]
[1756909046398,3.21273253,111220.0,111200.0,0.0001]
[1756909046593,1.96481832,111210.0,111200.0,0.0001]
[1756909046799,1.63956337,111210.0,111190.0,0.0001]
[1756909046998,1.03780916,111200.0,111190.0,0.0001]
[1756909047298,1.55576,111200.0,111190.0,0.01378]
[1756909047493,2.23276916,111200.0,111190.0,0.01378]
[1756909047807,2.23176916,111200.0,111190.0,0.01378]
[1756909048108,1.19492,111200.0,111190.0,0.28701]
[1756909048297,1.19392,111200.0,111190.0,0.28701]
[1756909048498,1.87092916,111200.0,111190.0,0.28701]
[1756909048695,0.02277,111210.0,111200.0,0.01378]
[1756909048902,0.20277,111210.0,111200.0,0.64781]
[1756909049194,0.02277,111210.0,111200.0,0.64781]
[1756909049602,0.01673,111220.0,111200.0,0.64781]
[1756909049898,0.15277,111220.0,111210.0,0.39781]
[1756909050104,0.02277,111220.0,111210.0,0.39781]
[1756909050401,0.08724213,111240.0,111220.0,0.01378]
[1756909050606,0.02277,111230.0,111220.0,0.39791]
[1756909050802,0.14277,111230.0,111220.0,0.39781]
[1756909052196,0.14277,111230.0,111220.0,0.40700033]
[1756909052605,0.14677,111230.0,111220.0,0.40800033]
[1756909052807,0.14677,111230.0,111220.0,0.65800033]
[1756909053001,0.004,111230.0,111220.0,0.65800033]
[1756909053198,0.01,111230.0,111220.0,0.65900033]
[1756909054204,0.01,111230.0,111220.0,0.74889403]
[1756909054505,0.01,111230.0,111220.0,0.65900033]
[1756909056705,0.70977916,111230.0,111220.0,0.40900033]
[1756909056907,0.03277,111230.0,111220.0,0.40900033]
[1756909057603,0.01,111230.0,111220.0,0.40900033]
[1756909058106,0.01,111230.0,111220.0,0.74889553]
[1756909058503,0.01,111230.0,111220.0,1.42590469]
[1756909058708,0.0001,111250.0,111240.0,0.03937]
[1756909059005,0.0001,111270.0,111260.0,0.03937]
[1756909059205,0.0001,111290.0,111280.0,0.0146]
[1756909059506,0.01438,111310.0,111280.0,1.68797916]
[1756909059711,0.08429,111310.0,111300.0,0.76097]
[1756909059903,0.18429,111310.0,111300.0,0.40017]
[1756909060098,0.02429,111310.0,111300.0,0.87017]
[1756909060410,0.02429,111310.0,111300.0,0.87914717]
[1756909060713,0.07429,111310.0,111300.0,0.87914717]
[1756909061110,0.07929,111310.0,111300.0,0.88014717]
[1756909062011,0.08029,111310.0,111300.0,0.88014717]
[1756909062400,0.08029,111310.0,111300.0,2.00778763]
[1756909062401,0.056,111310.0,111300.0,2.00778763]
[1756909062606,0.006,111310.0,111300.0,3.14190763]
[1756909063018,0.0019,111310.0,111300.0,3.14190763]
[1756909063529,0.0001,111330.0,111320.0,0.03937]
[1756909063715,0.97774,111350.0,111330.0,0.0146]
[1756909064026,0.02429,111340.0,111330.0,0.03937]
[1756909064227,0.35429,111340.0,111330.0,0.03937]
[1756909064430,0.60429,111340.0,111330.0,0.03937]
[1756909065522,0.60429,111340.0,111330.0,0.40017]
[1756909065717,0.35429,111340.0,111330.0,0.40027]
[1756909065924,0.35729,111340.0,111330.0,0.40127]
[1756909066529,0.36229,111340.0,111330.0,0.40227]
[1756909067124,0.36229,111340.0,111330.0,1.32927916]
[1756909067125,0.008,111340.0,111330.0,1.32927916]
[1756909067526,0.008,111340.0,111330.0,0.65227]
[1756909067726,0.008,111340.0,111330.0,1.6257574]
[1756909068131,0.008,111340.0,111330.0,0.7420774]
[1756909068331,0.008,111340.0,111330.0,1.6257574]
[1756909068523,0.008,111340.0,111330.0,1.41908656]
[1756909068723,0.008,111340.0,111330.0,1.53587]
[1756909069131,0.008,111340.0,111330.0,1.6256774]
[1756909069322,0.008,111340.0,111330.0,1.41908656]
[1756909069529,0.008,111340.0,111330.0,0.7420774]
[1756909069719,0.008,111340.0,111330.0,0.65227]
[1756909069919,0.72357916,111340.0,111330.0,0.02687]
[1756909070129,0.03229,111340.0,111330.0,0.04147]
[1756909070632,0.04657,111340.0,111330.0,0.02687]
[1756909070828,0.03229,111340.0,111330.0,0.04147]
[1756909071027,0.97357916,111340.0,111330.0,0.02687]
[1756909071227,1.33437916,111340.0,111330.0,0.0021]
[1756909071527,1.33437916,111340.0,111330.0,0.02687]
[1756909071733,0.268,111340.0,111330.0,0.40227]
[1756909072027,0.008,111340.0,111330.0,2.05244656]
[1756909072330,0.008,111340.0,111330.0,2.30244656]
[1756909073431,0.008,111340.0,111330.0,2.21263916]
[1756909073619,0.008,111340.0,111330.0,0.65227]
[1756909073824,0.008,111340.0,111330.0,1.28551]
[1756909075125,0.008,111340.0,111330.0,0.40227]
[1756909075325,0.008,111340.0,111330.0,1.28539]
[1756909076226,0.008,111340.0,111330.0,0.40227]
[1756909076427,1.33437916,111340.0,111330.0,0.0021]
[1756909076729,1.41437916,111340.0,111330.0,0.0021]
[1756909076931,0.03857,111310.0,111280.0,0.0146]
[1756909077138,0.03857,111310.0,111280.0,0.40017]
[1756909077139,0.02429,111290.0,111280.0,0.40017]
[1756909078619,0.02429,111290.0,111280.0,0.40417]
[1756909079037,1.05251899,111310.0,111280.0,0.40417]
[1756909079332,0.001,111290.0,111280.0,0.40417]
[1756909079526,0.02529,111290.0,111280.0,0.40417]
[1756909079721,0.001,111290.0,111280.0,0.40417]
[1756909080231,0.002,111290.0,111280.0,0.40417]
[1756909080426,0.002,111290.0,111280.0,1.28713]
[1756909081331,0.002,111290.0,111280.0,1.62698]
[1756909081538,0.002,111290.0,111280.0,1.53713]
[1756909081834,0.002,111290.0,111280.0,1.28713]
[1756909082027,0.001,111290.0,111280.0,1.28413]
[1756909082629,0.001,111290.0,111280.0,1.28313]
[1756909082829,0.003,111290.0,111280.0,1.28813]
[1756909083330,0.003,111290.0,111280.0,1.28413]
[1756909083532,0.002,111290.0,111280.0,1.28513]
[1756909083835,0.38519,111310.0,111300.0,0.03937]
[1756909084035,0.38509,111310.0,111300.0,0.02477]
[1756909084231,1.00429035,111310.0,111290.0,0.3754]
[1756909084438,1.00429035,111310.0,111280.0,1.25924]
[1756909084439,0.02429,111290.0,111280.0,1.25924]
[1756909085426,0.02529,111290.0,111280.0,1.26124]
[1756909086037,0.003,111290.0,111280.0,1.26124]
[1756909086242,0.02729,111290.0,111280.0,1.28597]
[1756909086442,0.02629,111290.0,111280.0,1.28297]
[1756909086639,0.99201035,111290.0,111280.0,0.04037]
[1756909086936,0.99001035,111290.0,111280.0,0.04037]
[1756909087132,0.99301035,111290.0,111280.0,0.04137]
[1756909087531,0.003,111290.0,111280.0,0.40217]
[1756909087938,0.003,111290.0,111280.0,0.4920184]
[1756909088838,0.003,111290.0,111280.0,0.40217]
[1756909089143,0.005,111290.0,111280.0,1.09594135]
[1756909089534,0.005,111290.0,111280.0,0.40117]
[1756909089734,0.005,111290.0,111280.0,0.40317]
[1756909090431,0.004,111290.0,111280.0,0.40117]
[1756909090636,0.005,111290.0,111280.0,0.40317]
[1756909090837,0.003,111290.0,111280.0,0.40217]
[1756909092948,0.003,111290.0,111280.0,0.4920189]
[1756909093139,0.003,111290.0,111280.0,1.09693925]
[1756909093442,0.003,111290.0,111280.0,0.4920189]
[1756909093648,0.003,111290.0,111280.0,1.34693925]
[1756909093839,0.0001,111310.0,111300.0,0.03878]
[1756909094039,0.02284,111330.0,111320.0,0.03878]
[1756909094235,0.37432125,111330.0,111320.0,0.03878]
[1756909094438,1.46175288,111350.0,111320.0,0.03878]
[1756909094439,0.44638158,111350.0,111320.0,1.3719561]
[1756909094639,0.85060612,111350.0,111340.0,0.02401]
[1756909095146,0.48980612,111350.0,111340.0,0.02401]
[1756909095344,0.40432454,111350.0,111340.0,0.03878]
[1756909095847,0.37514,111360.0,111350.0,0.01477]
[1756909095848,0.02274,111360.0,111350.0,0.01477]
[1756909096042,0.0001,111360.0,111350.0,0.39958]
[1756909096449,0.0001,111360.0,111350.0,1.25450035]
[1756909096756,0.0001,111360.0,111350.0,1.34429285]
[1756909096947,0.0001,111360.0,111350.0,1.25450035]
[1756909097338,0.0031,111360.0,111350.0,1.32484474]
[1756909097640,0.0091,111360.0,111350.0,0.72092439]
[1756909098051,0.0091,111360.0,111350.0,1.60328439]
[1756909098748,0.0091,111360.0,111350.0,1.60324439]
[1756909099051,0.0091,111360.0,111350.0,0.72092439]
[1756909099239,0.02584,111360.0,111350.0,1.35220439]
[1756909099437,0.0051,111360.0,111350.0,1.35316439]
[1756909099645,0.0051,111360.0,111350.0,0.47092439]
[1756909099847,0.0051,111360.0,111350.0,1.35316439]
[1756909100750,0.02784,111360.0,111350.0,0.47092439]
[1756909100944,0.0051,111360.0,111350.0,1.35308439]
[1756909101138,0.02784,111360.0,111350.0,1.35304439]
[1756909101746,0.0051,111360.0,111350.0,1.35304439]
[1756909103049,0.0051,111360.0,111350.0,0.47092439]
[1756909103442,0.02784,111360.0,111350.0,1.35288439]
[1756909103844,0.02784,111360.0,111350.0,0.03978]
[1756909104244,0.0051,111360.0,111350.0,0.03978]
[1756909104751,0.0051,111360.0,111350.0,0.40058]
[1756909105145,0.0051,111360.0,111350.0,1.34529405]
[1756909106351,0.01602,111370.0,111360.0,0.1045561]
[1756909106648,0.0001,111390.0,111380.0,0.03878]
[1756909106852,0.0001,111410.0,111380.0,1.97606755]
[1756909107154,0.0001,111410.0,111400.0,0.03878]
[1756909107155,0.35365404,111410.0,111400.0,0.03878]
[1756909107753,0.33091404,111410.0,111400.0,0.39958]
[1756909107954,0.33091404,111410.0,111400.0,1.2813]
[1756909108158,0.27091404,111410.0,111400.0,1.2813]
[1756909108450,0.02091404,111410.0,111400.0,1.2813]
[1756909108658,0.02691404,111410.0,111400.0,1.2823]
[1756909109047,0.006,111410.0,111400.0,1.2823]
[1756909109651,0.008,111410.0,111400.0,1.2823]
[1756909110253,0.011,111410.0,111400.0,1.2833]
[1756909110944,0.011,111410.0,111400.0,2.22797265]
[1756909111349,0.011,111410.0,111400.0,1.5333]
[1756909111550,0.011,111410.0,111400.0,2.13822035]
[1756909111746,0.011,111410.0,111400.0,1.5333]
[1756909111949,0.011,111410.0,111400.0,2.13822035]
[1756909112558,0.011,111410.0,111400.0,2.22797115]
[1756909112956,0.011,111410.0,111400.0,2.25797115]
[1756909113151,0.0001,111430.0,111420.0,0.03878]
[1756909113350,0.02274,111440.0,111430.0,0.03878]
[1756909113552,0.35274,111440.0,111430.0,0.39958]
[1756909114763,0.35274,111440.0,111430.0,0.40058]
[1756909114764,0.36074,111440.0,111430.0,0.40058]
[1756909114965,0.36074,111440.0,111430.0,0.03978]
[1756909115263,0.37508,111440.0,111430.0,0.02501]
[1756909115659,0.38208,111440.0,111430.0,0.02601]
[1756909116359,0.38208,111440.0,111430.0,0.03485671]
[1756909116560,0.99288,111440.0,111430.0,0.01084671]
[1756909116957,0.99288,111440.0,111430.0,0.03485671]
[1756909118060,0.63208,111440.0,111430.0,0.03485671]
[1756909118268,0.63208,111440.0,111430.0,0.39565671]
[1756909119066,0.63208,111440.0,111430.0,0.03485671]
[1756909119270,0.63208,111440.0,111430.0,0.03407671]
[1756909120667,0.63208,111440.0,111430.0,0.01084671]
[1756909121174,0.63208,111440.0,111430.0,0.03407671]
[1756909121568,0.63208,111440.0,111430.0,0.01084671]
[1756909121769,1.59780035,111440.0,111430.0,0.002]
[1756909122071,0.02458,111410.0,111400.0,0.48682094]
[1756909122369,0.03859,111410.0,111400.0,0.48682094]
[1756909123275,0.02458,111410.0,111400.0,0.50140094]
[1756909123771,0.02458,111420.0,111410.0,0.01458]
[1756909123971,0.02458,111420.0,111410.0,0.03781]
[1756909124368,0.03859,111420.0,111410.0,0.02323]
[1756909124769,0.03859,111420.0,111410.0,0.03781]
[1756909124974,0.04259,111420.0,111410.0,0.03781]
[1756909125174,0.04259,111420.0,111410.0,0.03791]
[1756909125375,0.04659,111420.0,111410.0,0.02333]
[1756909125968,0.04459,111420.0,111410.0,0.02333]
[1756909126869,0.04459,111420.0,111410.0,0.0001]
[1756909127073,0.40139,111420.0,111410.0,0.0001]
[1756909127273,0.40439,111420.0,111410.0,0.0001]
[1756909127470,0.04359,111420.0,111410.0,0.02333]
[1756909127670,0.04359,111420.0,111410.0,0.03791]
[1756909127877,0.02958,111420.0,111410.0,0.39871]
[1756909128080,0.04359,111420.0,111410.0,0.39871]
[1756909128474,0.02958,111420.0,111410.0,0.39871]
[1756909128674,0.005,111420.0,111410.0,2.13399035]
[1756909128982,0.005,111420.0,111410.0,2.22373395]
[1756909129680,0.005,111420.0,111410.0,2.25373395]
[1756909130576,0.0001,111430.0,111420.0,0.0897351]
[1756909130877,0.0001,111450.0,111440.0,0.03781]
[1756909131077,0.39949,111470.0,111460.0,0.02323]
[1756909131272,0.34859,111470.0,111460.0,0.02323]
[1756909131479,0.70939,111470.0,111460.0,0.02323]
[1756909131883,0.70939,111470.0,111450.0,0.37538]
[1756909132077,0.34859,111470.0,111460.0,0.02323]
[1756909132272,0.34859,111470.0,111460.0,0.38403]
[1756909132478,0.33458,111470.0,111460.0,0.39861]
[1756909132778,0.03859,111480.0,111470.0,0.02323]
[1756909132979,0.39859,111480.0,111470.0,0.02323]
[1756909133379,0.39859,111480.0,111470.0,0.03781]
[1756909133979,0.39859,111480.0,111470.0,0.04690376]
[1756909134885,0.363,111480.0,111470.0,1.01262411]
[1756909135178,0.003,111480.0,111470.0,1.10232071]
[1756909135386,0.005,111480.0,111470.0,1.35232071]
[1756909135779,0.005,111480.0,111470.0,1.82232071]
[1756909136385,0.005,111480.0,111470.0,1.89307716]
[1756909136585,0.003,111480.0,111470.0,1.89307716]
[1756909136782,0.003,111480.0,111470.0,1.89407716]
[1756909136980,0.003,111480.0,111470.0,1.80438056]
[1756909137688,0.02458,111490.0,111480.0,0.03781]
[1756909137880,0.02458,111490.0,111480.0,1.27837]
[1756909138075,0.02458,111490.0,111480.0,1.26371]
[1756909138076,0.03859,111490.0,111480.0,1.26371]
[1756909138382,0.02458,111490.0,111480.0,1.27829]
[1756909138578,0.02458,111490.0,111480.0,1.88317035]
[1756909138780,0.03859,111500.0,111490.0,0.03781]
[1756909138980,0.37859,111500.0,111490.0,0.39861]
[1756909139482,0.01401,111490.0,111480.0,1.24036]
[1756909139681,0.01401,111490.0,111480.0,1.91437451]
[1756909139883,0.01401,111490.0,111480.0,0.3608]
[1756909140288,0.28859,111490.0,111480.0,0.90271]
[1756909140481,0.03859,111480.0,111470.0,1.42929021]
[1756909140784,0.02458,111450.0,111440.0,0.15267028]
[1756909141083,0.02458,111450.0,111440.0,0.41347028]
[1756909141285,0.02458,111450.0,111440.0,0.51376341]
[1756909141481,0.03859,111450.0,111440.0,0.49053341]
[1756909141686,0.39939,111450.0,111440.0,0.49959942]
[1756909141887,0.39939,111450.0,111440.0,0.51376341]
[1756909142090,0.39939,111450.0,111440.0,0.02053341]
[1756909142091,0.64939,111450.0,111440.0,0.02053341]
[1756909142298,1.32344451,111450.0,111440.0,0.02053341]
[1756909142489,2.20276451,111450.0,111440.0,0.02053341]
[1756909142688,0.01022,111430.0,111420.0,0.49058209]
[1756909142880,1.06965451,111430.0,111420.0,0.49058209]
[1756909143085,1.31965451,111430.0,111420.0,0.02058209]
[1756909143381,0.6456,111430.0,111420.0,0.02058209]
[1756909143582,0.95485451,111430.0,111420.0,0.85138209]
[1756909143892,0.02458,111440.0,111430.0,0.03781]
[1756909144193,0.38538,111450.0,111440.0,0.03781]
[1756909144489,0.01401,111440.0,111420.0,0.86596209]
[1756909144688,0.02458,111430.0,111420.0,0.88919209]
[1756909145185,0.37112,111450.0,111420.0,0.88919209]
[1756909145387,0.37112,111450.0,111430.0,0.39861]
[1756909145388,0.02458,111440.0,111430.0,0.39861]
[1756909145589,0.02658,111450.0,111440.0,0.03781]
[1756909145886,0.02458,111450.0,111440.0,0.39861]
[1756909148490,0.02458,111460.0,111450.0,0.03781]
[1756909148697,0.02458,111460.0,111450.0,0.04781]
[1756909150192,0.001,111460.0,111450.0,2.29141731]
[1756909150393,0.001,111460.0,111450.0,1.6174628]
[1756909150597,0.001,111460.0,111450.0,2.29151731]
[1756909150790,0.001,111460.0,111450.0,2.32151731]
[1756909151796,0.001,111460.0,111450.0,2.61151731]
[1756909152000,0.001,111460.0,111450.0,1.73247811]
[1756909152201,0.001,111460.0,111450.0,1.43247811]
[1756909152386,0.001,111460.0,111450.0,2.22168451]
[1756909152592,0.001,111460.0,111450.0,2.31139811]
[1756909152789,0.001,111460.0,111450.0,1.34276451]
[1756909153191,0.001,111460.0,111450.0,1.97164451]
[1756909153497,0.001,111460.0,111450.0,2.06135771]
[1756909155001,0.001,111460.0,111450.0,2.06131771]
[1756909155409,0.001,111460.0,111450.0,2.06119771]
[1756909155699,0.001,111460.0,111450.0,0.41871]
[1756909155898,0.001,111460.0,111450.0,2.06115771]
[1756909156198,0.001,111460.0,111450.0,1.18247771]
[1756909156405,0.001,111460.0,111450.0,2.06115771]
[1756909157103,0.001,111460.0,111450.0,2.06107771]
[1756909157700,0.001,111460.0,111450.0,1.18247771]
[1756909157901,0.001,111460.0,111450.0,2.06107771]
[1756909158201,0.001,111460.0,111450.0,1.3870232]
[1756909158397,0.001,111460.0,111450.0,1.09276451]
[1756909158704,0.001,111460.0,111450.0,2.06095771]
[1756909159906,0.001,111460.0,111450.0,1.3869032]
[1756909160206,0.001,111460.0,111450.0,2.06095771]
[1756909160408,0.001,111460.0,111450.0,2.09095771]
[1756909160702,0.001,111460.0,111450.0,2.96501222]
[1756909161002,1.11358407,111520.0,111490.0,0.01413]
[1756909161206,0.02296,111510.0,111500.0,0.39919]
[1756909162604,0.27296,111510.0,111500.0,0.39919]
[1756909162814,0.02296,111510.0,111500.0,0.39919]
[1756909163601,0.02696,111510.0,111500.0,0.39919]
[1756909163801,0.03296,111510.0,111500.0,0.40019]
[1756909165612,0.03296,111510.0,111500.0,1.27819]
[1756909166306,0.70701451,111510.0,111500.0,0.40019]
[1756909166605,0.97102451,111510.0,111500.0,0.001]
[1756909166805,1.33182451,111510.0,111500.0,0.001]
[1756909167210,1.35216893,111510.0,111500.0,0.001]
[1756909167411,1.33182451,111510.0,111500.0,0.001]
[1756909170919,0.97102451,111510.0,111500.0,0.001]
[1756909171215,1.31781451,111510.0,111500.0,0.03939]
[1756909171409,0.95701451,111510.0,111500.0,0.40019]
[1756909171610,0.03296,111510.0,111500.0,0.40019]
[1756909171808,0.03296,111510.0,111500.0,1.95180451]
[1756909172013,0.01,111510.0,111500.0,1.95180451]
[1756909172816,0.01,111510.0,111500.0,1.27775]
[1756909173017,0.70701451,111510.0,111500.0,0.91687]
[1756909173216,0.70301451,111510.0,111500.0,0.91687]
[1756909173417,0.70601451,111510.0,111500.0,0.03939]
[1756909173819,0.03196,111510.0,111500.0,0.03939]
[1756909174020,0.70601451,111510.0,111500.0,0.03939]
[1756909174320,0.03196,111510.0,111500.0,0.03939]
[1756909174620,0.03096,111510.0,111500.0,0.03839]
[1756909175522,0.008,111510.0,111500.0,0.03839]
[1756909175726,0.005,111510.0,111500.0,0.39919]
[1756909175927,0.003,111510.0,111500.0,0.39919]
[1756909176427,0.02596,111510.0,111500.0,0.39919]
[1756909176726,0.70001451,111510.0,111500.0,0.91571]
[1756909176926,0.70001451,111510.0,111500.0,0.03839]
[1756909177429,0.02596,111510.0,111500.0,0.03839]
[1756909177728,0.70001451,111510.0,111500.0,0.02426]
[1756909177923,1.06913451,111510.0,111490.0,1.32516534]
[1756909178221,0.69701451,111500.0,111490.0,0.47226534]
[1756909178421,0.02296,111500.0,111490.0,0.47226534]
[1756909178622,0.69701451,111500.0,111490.0,0.47226534]
[1756909179021,0.69701451,111500.0,111490.0,0.38506]
[1756909179225,0.70533451,111500.0,111490.0,0.38506]
[1756909179425,0.70533451,111500.0,111490.0,0.02426]
[1756909179729,0.69701451,111500.0,111490.0,0.03815]
[1756909179925,0.69701451,111500.0,111490.0,0.02426]
[1756909180125,0.02485,111480.0,111470.0,1.12818892]
[1756909180431,0.02495,111490.0,111480.0,0.03684]
[1756909180627,0.0001,111500.0,111490.0,0.03684]
[1756909180822,0.02041145,111500.0,111490.0,1.2746]
[1756909181031,0.0011,111510.0,111500.0,0.01389]
[1756909181330,0.0204128,111510.0,111500.0,0.39764]
[1756909181525,0.02485,111510.0,111500.0,0.39764]
[1756909182431,0.02495,111520.0,111510.0,0.03684]
[1756909182630,0.04526831,111520.0,111510.0,0.39764]
[1756909182835,0.02485,111520.0,111510.0,0.39764]
[1756909183130,0.72764558,111520.0,111510.0,0.02295]
[1756909183318,0.71932558,111520.0,111510.0,0.02295]
[1756909183626,0.04527107,111520.0,111510.0,0.03684]
[1756909183949,1.08844558,111520.0,111500.0,1.25153]
[1756909184127,1.08854558,111520.0,111500.0,1.25153]
[1756909184631,0.04537107,111520.0,111510.0,0.03684]
[1756909184828,0.04827107,111520.0,111510.0,0.03684]
[1756909185326,0.04827107,111520.0,111510.0,0.39764]
[1756909185532,0.02242107,111520.0,111510.0,0.39764]
[1756909185833,0.002,111520.0,111510.0,0.39764]
[1756909186023,0.004,111520.0,111510.0,0.39764]
[1756909186219,0.005,111520.0,111510.0,0.39764]
[1756909187427,0.005,111520.0,111510.0,1.41135971]
[1756909189038,0.004,111520.0,111510.0,1.41135971]
[1756909189226,0.003,111520.0,111510.0,1.41135971]
[1756909189431,0.003,111520.0,111510.0,1.47559782]
[1756909190626,0.003,111520.0,111510.0,1.48559782]
[1756909190832,0.003,111520.0,111510.0,2.71191782]
[1756909191129,0.0001,111560.0,111550.0,0.03684]
[1756909191329,0.02485,111560.0,111550.0,1.27392]
[1756909191530,1.04886451,111580.0,111550.0,1.27392]
[1756909191823,0.02485,111570.0,111560.0,0.39764]
[1756909192419,0.95722451,111570.0,111550.0,0.37469]
[1756909192625,0.70722451,111560.0,111540.0,0.37469]
[1756909192825,0.69890451,111560.0,111550.0,0.03784]
[1756909193229,0.27485,111560.0,111550.0,0.03784]
[1756909193531,0.27485,111560.0,111550.0,0.03684]
[1756909193726,0.94890451,111560.0,111550.0,0.39764]
[1756909194026,0.02485,111560.0,111550.0,0.39764]
[1756909194234,0.03085,111560.0,111550.0,1.27364]
[1756909194526,0.006,111560.0,111550.0,1.27364]
[1756909194928,0.006,111560.0,111550.0,0.39764]
[1756909195128,0.006,111560.0,111550.0,1.27356]
[1756909195328,0.006,111560.0,111550.0,0.39764]
[1756909195529,0.006,111560.0,111550.0,1.27352]
[1756909196027,0.70490451,111560.0,111550.0,0.91268]
[1756909196235,0.69990451,111560.0,111550.0,0.03684]
[1756909196629,0.02585,111560.0,111550.0,0.39764]
[1756909197028,0.001,111560.0,111550.0,0.39764]
[1756909197229,0.02585,111560.0,111550.0,0.39764]
[1756909197431,0.02585,111560.0,111550.0,1.27332]
[1756909197831,0.001,111560.0,111550.0,1.27332]
[1756909200737,0.001,111560.0,111550.0,0.39764]
[1756909201037,0.94990451,111560.0,111550.0,0.91224]
[1756909201438,0.27585,111560.0,111550.0,0.03684]
[1756909202132,0.001,111560.0,111550.0,0.39764]
[1756909202532,0.001,111560.0,111550.0,0.99966765]
[1756909202734,0.001,111560.0,111550.0,0.39764]
[1756909202932,0.02585,111560.0,111550.0,1.27292]
[1756909203228,0.001,111560.0,111550.0,1.27292]
[1756909203434,0.001,111560.0,111550.0,2.21458035]
[1756909203630,0.001,111560.0,111550.0,1.52292]
[1756909204029,0.001,111560.0,111550.0,0.39764]
[1756909204338,0.02585,111560.0,111550.0,1.27288]
[1756909204537,0.001,111560.0,111550.0,1.27288]
[1756909204731,0.001,111560.0,111550.0,0.39764]
[1756909204934,0.02585,111560.0,111550.0,1.27284]
[1756909205438,0.001,111560.0,111550.0,1.34326619]
[1756909206338,0.001,111560.0,111550.0,2.28492614]
[1756909207138,0.001,111560.0,111550.0,1.68289849]
[1756909207434,0.0001,111600.0,111560.0,0.0896215]
[1756909207739,0.40607877,111600.0,111590.0,0.03684]
[1756909208035,1.01642642,111600.0,111580.0,0.01389]
[1756909208334,0.03317,111580.0,111570.0,0.3608]
[1756909208536,0.62687765,111580.0,111570.0,0.39764]
[1756909208738,1.24599765,111580.0,111560.0,0.37469]
[1756909209031,0.62506765,111570.0,111560.0,0.01389]
[1756909209236,1.24987765,111570.0,111550.0,0.01389]
[1756909209547,0.02304,111550.0,111540.0,0.03736]
[1756909210440,0.02304,111560.0,111550.0,0.01396]
[1756909210630,0.02304,111560.0,111550.0,0.39823]
[1756909210931,1.24987765,111560.0,111540.0,1.25173]
[1756909211139,0.39795,111560.0,111540.0,1.25173]
[1756909211334,0.60202765,111550.0,111540.0,0.03936]
[1756909211534,1.24987765,111550.0,111540.0,0.002]
[1756909211736,1.27030813,111550.0,111540.0,0.002]
[1756909212331,2.14534813,111550.0,111540.0,0.002]
[1756909213237,1.27030813,111550.0,111540.0,0.002]
[1756909213442,1.26930813,111550.0,111520.0,0.38353528]
[1756909213743,0.99736813,111550.0,111520.0,1.28204528]
[1756909214044,0.99736813,111550.0,111530.0,0.03743]
[1756909214045,0.02304,111540.0,111530.0,0.03743]
[1756909215344,0.02404,111540.0,111530.0,0.03743]
[1756909215649,0.02404,111540.0,111530.0,0.02347]
[1756909215941,0.62606765,111540.0,111530.0,0.02347]
[1756909216134,1.24418765,111540.0,111520.0,0.37576]
[1756909216336,0.99428765,111540.0,111520.0,0.01496]
[1756909216546,0.63338765,111530.0,111520.0,0.001]
[1756909217840,0.88338765,111530.0,111510.0,0.38389392]
[1756909218146,0.63348765,111530.0,111510.0,0.38389392]
[1756909218645,0.63348765,111530.0,111510.0,0.37476]
[1756909218941,0.63907765,111520.0,111500.0,1.2498]
[1756909219135,0.62516765,111520.0,111510.0,0.03743]
[1756909219333,0.62506765,111520.0,111510.0,0.03843]
[1756909219533,0.62506765,111520.0,111510.0,0.04755493]
[1756909219837,0.62506765,111520.0,111510.0,0.03843]
[1756909220035,0.02304,111520.0,111510.0,0.03843]
[1756909220744,0.02304,111520.0,111510.0,0.04043]
[1756909221341,0.02304,111520.0,111510.0,0.03843]
[1756909221545,0.98596765,111530.0,111520.0,0.01396]
[1756909221747,0.38384,111530.0,111520.0,0.03743]
[1756909222047,0.02304,111530.0,111520.0,0.03743]
[1756909222642,0.07020252,111540.0,111530.0,0.01396]
[1756909222843,0.02304,111540.0,111530.0,0.03743]
[1756909224047,0.02404,111540.0,111530.0,0.03743]
[1756909224842,0.001,111540.0,111530.0,0.03743]
[1756909225045,0.002,111540.0,111530.0,0.39823]
[1756909225348,0.02504,111540.0,111530.0,0.03743]
[1756909226147,0.38584,111540.0,111530.0,0.03743]
[1756909226344,0.02504,111540.0,111530.0,0.03743]
[1756909226549,0.02504,111540.0,111530.0,0.39823]
[1756909227644,0.02504,111540.0,111530.0,0.03743]
[1756909227843,0.98786765,111540.0,111530.0,0.03743]
[1756909228042,1.00187765,111540.0,111520.0,0.01396]
[1756909228248,0.98586765,111530.0,111520.0,0.03743]
[1756909228852,0.99418765,111530.0,111510.0,0.01396]
[1756909229053,0.99428765,111530.0,111510.0,0.01396]
[1756909229448,0.98596765,111530.0,111520.0,0.03743]
[1756909229644,0.98586765,111530.0,111520.0,0.03743]
[1756909230455,0.99418765,111530.0,111510.0,0.01396]
[1756909230651,0.99428765,111530.0,111520.0,0.02347]
[1756909230853,0.98586765,111530.0,111520.0,0.03743]
[1756909231352,0.99418765,111530.0,111520.0,0.02347]
[1756909231554,0.98586765,111530.0,111520.0,0.02347]
[1756909231852,0.99418765,111530.0,111520.0,0.02347]
[1756909232045,0.99518765,111530.0,111520.0,0.02347]
[1756909232355,0.99518765,111530.0,111510.0,0.01396]
[1756909232552,0.99528765,111530.0,111510.0,0.01396]
[1756909232956,0.99628765,111530.0,111510.0,0.01396]
[1756909233456,0.99628765,111530.0,111520.0,0.02347]
[1756909233754,0.99518765,111530.0,111510.0,0.01396]
[1756909233954,0.99987765,111520.0,111500.0,0.38358385]
[1756909234145,1.24975,111520.0,111500.0,0.38358385]